bitfinex-derivatives/quotes_BTCF0:USTF0_20250609
["timestamp","ask_amount","ask_price","bid_price","bid_amount"]
[1749448064263,0.8737921,105410.0,105400.0,1.00251465]
[1749448064463,1.2345921,105410.0,105400.0,1.00251465]
[1749448064660,0.8737921,105410.0,105400.0,1.00251465]
[1749448064861,1.2345921,105410.0,105400.0,1.00251465]
[1749448065061,1.2345975,105410.0,105400.0,1.00251465]
[1749448066263,0.8737975,105410.0,105400.0,1.00251465]
[1749448066465,1.2345975,105410.0,105400.0,1.00251465]
[1749448067669,1.2345975,105410.0,105400.0,0.90763349]
[1749448067864,1.2345975,105410.0,105400.0,0.67124776]
[1749448067865,1.1981417,105410.0,105400.0,0.67124776]
[1749448068071,1.1981417,105410.0,105400.0,0.81903824]
[1749448068263,1.1981417,105410.0,105400.0,0.81943824]
[1749448069066,1.1981417,105410.0,105400.0,0.70157278]
[1749448069267,1.5589417,105410.0,105400.0,0.81943824]
[1749448069474,1.5589417,105410.0,105400.0,0.81903824]
[1749448069668,1.5589417,105410.0,105400.0,0.81943824]
[1749448070173,1.59539313,105410.0,105400.0,0.78977735]
[1749448070674,1.5589417,105410.0,105400.0,0.78977735]
[1749448072472,1.5589417,105410.0,105400.0,0.90764281]
[1749448072672,1.5589417,105410.0,105400.0,0.78977735]
[1749448075685,1.5589417,105410.0,105400.0,0.93796783]
[1749448077089,1.5589417,105410.0,105400.0,0.78977735]
[1749448083794,1.67680716,105410.0,105400.0,0.78977735]
[1749448083988,1.67680716,105410.0,105400.0,0.78937735]
[1749448084186,1.67680716,105410.0,105400.0,0.93756783]
[1749448084586,1.71311215,105410.0,105400.0,0.93756783]
[1749448084799,1.71311215,105410.0,105400.0,0.78977735]
[1749448085787,1.59524669,105410.0,105400.0,0.78977735]
[1749448089896,1.59524669,105410.0,105400.0,0.8040527]
[1749448090089,1.59524669,105410.0,105400.0,0.80405732]
[1749448090289,1.59524669,105410.0,105400.0,0.80405836]
[1749448090489,1.59524669,105410.0,105400.0,0.78977735]
[1749448090997,1.59524669,105410.0,105400.0,0.80405836]
[1749448091192,1.5589417,105410.0,105400.0,0.68552877]
[1749448091498,1.5589417,105410.0,105400.0,0.83371925]
[1749448091797,1.5589417,105410.0,105400.0,0.81943824]
[1749448092093,1.5589417,105410.0,105400.0,0.80403602]
[1749448093091,1.5589417,105410.0,105400.0,0.80403622]
[1749448093500,1.5589417,105410.0,105400.0,0.78975324]
[1749448093703,1.5589417,105410.0,105400.0,0.80403622]
[1749448094201,1.5589417,105410.0,105400.0,0.78975324]
[1749448094599,1.5589417,105410.0,105400.0,0.80403622]
[1749448095100,1.5585417,105410.0,105400.0,0.80403622]
[1749448095503,1.5585417,105410.0,105400.0,0.49285324]
[1749448095697,1.5585417,105410.0,105400.0,0.56941722]
[1749448096001,1.5585417,105410.0,105400.0,0.58368947]
[1749448097002,1.5946068,105410.0,105400.0,0.45091174]
[1749448098302,1.2338068,105410.0,105400.0,0.45091174]
[1749448100593,1.2338068,105410.0,105400.0,0.33304628]
[1749448100797,1.2338068,105410.0,105400.0,0.45091174]
[1749448101402,1.2338068,105410.0,105400.0,0.74781174]
[1749448101805,1.35167226,105410.0,105400.0,0.74781174]
[1749448103302,1.35167226,105410.0,105400.0,0.86631722]
[1749448104405,1.35166013,105410.0,105400.0,0.86631722]
[1749448104805,0.99086013,105410.0,105400.0,0.86631722]
[1749448105000,1.35166013,105410.0,105400.0,0.78975324]
[1749448106403,1.31536716,105410.0,105400.0,0.78975324]
[1749448106603,1.35165825,105410.0,105400.0,0.78975324]
[1749448109706,1.31536716,105410.0,105400.0,0.93794372]
[1749448109899,1.31536716,105410.0,105400.0,0.82007826]
[1749448110102,1.31536716,105410.0,105400.0,0.93794372]
[1749448110598,1.31536716,105410.0,105400.0,0.67188778]
[1749448110807,1.31536716,105410.0,105400.0,0.78975324]
[1749448115004,0.77884716,105410.0,105400.0,0.78975324]
[1749448115307,1.2335129,105410.0,105400.0,0.78911322]
[1749448115507,1.2335129,105410.0,105400.0,0.67124776]
[1749448116509,1.2335129,105410.0,105400.0,0.78911322]
[1749448117410,1.2334729,105410.0,105400.0,0.78911322]
[1749448118305,1.2334729,105410.0,105400.0,0.81951322]
[1749448118811,0.6972329,105410.0,105400.0,0.81951322]
[1749448119109,1.2334729,105410.0,105400.0,0.81951322]
[1749448119712,1.2334729,105410.0,105400.0,0.85071322]
[1749448120510,1.2334729,105410.0,105400.0,0.73284776]
[1749448121211,1.2334729,105410.0,105400.0,0.85071322]
[1749448121511,1.1972217,105410.0,105400.0,0.9989037]
[1749448121712,0.6609817,105410.0,105400.0,0.9989037]
[1749448121911,1.1972217,105410.0,105400.0,0.9989037]
[1749448122305,1.1972217,105410.0,105400.0,1.0320037]
[1749448122715,1.1665217,105410.0,105400.0,1.0320037]
[1749448127317,0.6302817,105410.0,105400.0,1.0320037]
[1749448127618,1.1664817,105410.0,105400.0,1.0320037]
[1749448129517,0.8056817,105410.0,105400.0,1.0320037]
[1749448129715,1.1664817,105410.0,105400.0,1.0320037]
[1749448130017,0.8056817,105410.0,105400.0,1.0320037]
[1749448130222,1.1664817,105410.0,105400.0,1.0320037]
[1749448131521,0.7316417,105410.0,105400.0,1.0320037]
[1749448131816,1.1034417,105410.0,105400.0,1.0320037]
[1749448136822,1.1034417,105410.0,105400.0,0.7351037]
[1749448138020,0.4788774,105410.0,105400.0,0.7351037]
[1749448138219,0.94024206,105410.0,105400.0,1.04846144]
[1749448138417,0.94024206,105410.0,105400.0,0.90027096]
[1749448142029,0.36794228,105410.0,105400.0,0.90027096]
[1749448142226,0.90386228,105410.0,105400.0,0.90027096]
[1749448142828,0.90386228,105410.0,105400.0,1.19717096]
[1749448143530,0.90386228,105410.0,105400.0,1.22687585]
[1749448145432,0.36794228,105410.0,105400.0,1.22687585]
[1749448145632,0.90386228,105410.0,105400.0,1.22687585]
[1749448145932,0.90386228,105410.0,105400.0,1.43396415]
[1749448146130,0.90386228,105410.0,105400.0,1.28577367]
[1749448146330,0.90386228,105410.0,105400.0,1.5338475]
[1749448146633,0.89986228,105410.0,105400.0,1.5338475]
[1749448146825,0.90186228,105410.0,105400.0,1.5338475]
[1749448147025,0.37003423,105420.0,105410.0,0.1896443]
[1749448147229,0.3608,105420.0,105410.0,0.9882873]
[1749448147531,0.53148,105430.0,105420.0,0.1896263]
[1749448147831,0.96612,105430.0,105420.0,1.06673148]
[1749448148134,0.96612,105430.0,105420.0,1.42753148]
[1749448148135,0.43024,105430.0,105420.0,1.42753148]
[1749448148329,0.46218228,105440.0,105430.0,0.1896084]
[1749448148532,1.08641268,105440.0,105430.0,0.58918131]
[1749448148836,1.08641268,105440.0,105430.0,0.62218131]
[1749448149029,1.14671268,105440.0,105430.0,0.62218131]
[1749448149938,1.15622351,105440.0,105430.0,0.62218131]
[1749448150238,1.16022351,105440.0,105430.0,0.62218131]
[1749448150633,1.16022351,105440.0,105430.0,0.65064131]
[1749448150838,1.16222351,105440.0,105430.0,0.68857131]
[1749448152139,1.16222351,105440.0,105430.0,0.65767131]
[1749448152340,1.19482351,105440.0,105430.0,0.74626632]
[1749448153436,1.19482351,105440.0,105430.0,0.71376632]
[1749448153943,1.19482351,105440.0,105430.0,0.59590086]
[1749448154135,1.19482351,105440.0,105430.0,0.56245887]
[1749448154331,1.19482351,105440.0,105430.0,0.68076632]
[1749448154945,1.19482351,105440.0,105430.0,0.58076632]
[1749448155146,1.19482351,105440.0,105430.0,0.46245887]
[1749448155346,1.31268897,105440.0,105430.0,0.46245887]
[1749448155547,1.31268897,105440.0,105430.0,0.46285887]
[1749448156051,1.31268897,105440.0,105430.0,0.46245887]
[1749448156240,1.31268897,105440.0,105430.0,0.46285887]
[1749448156936,1.19482351,105440.0,105430.0,0.46285887]
[1749448157548,1.19482351,105440.0,105430.0,0.75975887]
[1749448159754,1.19888011,105440.0,105430.0,0.75975887]
[1749448167463,0.76424011,105440.0,105430.0,0.75975887]
[1749448167757,1.19868011,105440.0,105430.0,0.85975887]
[1749448168160,1.19852011,105440.0,105430.0,0.85975887]
[1749448168459,1.19852011,105440.0,105430.0,0.97806632]
[1749448169454,1.19852011,105440.0,105430.0,0.88947131]
[1749448170157,1.16592011,105440.0,105430.0,0.88947131]
[1749448170358,1.16592011,105440.0,105430.0,0.92187131]
[1749448173464,0.63040011,105440.0,105430.0,0.92187131]
[1749448173664,0.63040011,105440.0,105430.0,1.02187131]
[1749448173865,0.70396011,105440.0,105430.0,1.02187131]
[1749448175265,0.70396011,105440.0,105430.0,1.69538193]
[1749448175266,0.44455888,105440.0,105430.0,1.69538193]
[1749448175466,0.44455888,105440.0,105430.0,1.75928193]
[1749448175653,0.44455888,105440.0,105430.0,1.64097448]
[1749448175854,0.63414928,105440.0,105430.0,1.28017448]
[1749448176664,0.19978928,105440.0,105430.0,1.28017448]
[1749448176867,0.44455888,105440.0,105430.0,1.28017448]
[1749448177061,0.01019888,105440.0,105430.0,1.28017448]
[1749448177261,0.44455888,105440.0,105430.0,1.28017448]
[1749448177659,0.44455888,105440.0,105430.0,1.42824874]
[1749448178165,0.44455888,105440.0,105430.0,1.31038328]
[1749448178355,0.44455888,105440.0,105430.0,1.21038328]
[1749448178559,0.66604928,105440.0,105430.0,1.21038328]
[1749448178867,0.69874928,105440.0,105430.0,1.21038328]
[1749448179666,0.50915888,105440.0,105430.0,1.21038328]
[1749448180166,0.07479888,105440.0,105430.0,1.21038328]
[1749448180367,0.50911888,105440.0,105430.0,1.21038328]
[1749448180970,0.04209888,105440.0,105430.0,1.21038328]
[1749448181162,0.47641888,105440.0,105430.0,1.31038328]
[1749448182470,0.47641888,105440.0,105430.0,1.21038328]
[1749448183772,0.66600928,105440.0,105430.0,1.21038328]
[1749448183970,0.47641888,105440.0,105430.0,1.21038328]
[1749448188676,0.66600928,105440.0,105430.0,1.21038328]
[1749448188872,0.47641888,105440.0,105430.0,1.21038328]
[1749448190267,0.50931888,105440.0,105430.0,1.21038328]
[1749448190573,0.50931888,105440.0,105430.0,1.31038328]
[1749448193376,0.50931888,105440.0,105430.0,1.21038328]
[1749448194477,0.50919888,105440.0,105430.0,1.31038328]
[1749448194871,0.50919888,105440.0,105430.0,1.21038328]
[1749448195977,1.05958928,105440.0,105430.0,0.99621782]
[1749448196180,0.73128928,105440.0,105430.0,1.01408328]
[1749448196576,0.73128928,105440.0,105430.0,1.01368328]
[1749448196776,0.73128928,105440.0,105430.0,1.01408328]
[1749448197380,0.73128928,105440.0,105430.0,1.11408328]
[1749448198870,0.73128928,105440.0,105430.0,1.01408328]
[1749448199480,0.73128928,105440.0,105430.0,1.11408328]
[1749448200177,0.73128928,105440.0,105430.0,1.01408328]
[1749448201285,0.73128928,105440.0,105430.0,1.22117158]
[1749448201481,0.73128928,105440.0,105430.0,1.32117158]
[1749448202079,0.73128928,105440.0,105430.0,0.99621782]
[1749448202283,0.73128928,105440.0,105430.0,1.11408328]
[1749448203782,0.73128928,105440.0,105430.0,1.20330612]
[1749448203982,0.73128928,105440.0,105430.0,1.32117158]
[1749448204382,0.73128928,105440.0,105430.0,1.17309732]
[1749448206588,0.73128928,105440.0,105430.0,1.29151986]
[1749448206879,0.73128928,105440.0,105430.0,1.08443156]
[1749448207484,0.73128928,105440.0,105430.0,0.9891864]
[1749448207787,0.73128928,105440.0,105430.0,0.9895864]
[1749448211487,0.83228928,105440.0,105430.0,0.9895864]
[1749448216494,0.83228928,105440.0,105430.0,0.87116386]
[1749448216693,0.83228928,105440.0,105430.0,1.01919204]
[1749448217594,0.83228928,105440.0,105430.0,0.87116386]
[1749448217894,0.83228928,105440.0,105430.0,1.07825216]
[1749448219387,0.20849888,105440.0,105430.0,1.07825216]
[1749448219592,0.64257888,105440.0,105430.0,1.07825216]
[1749448219795,0.83216918,105440.0,105430.0,1.10985216]
[1749448221292,0.64257888,105440.0,105430.0,1.10985216]
[1749448221690,0.64257888,105440.0,105430.0,1.20985216]
[1749448224900,0.64257888,105440.0,105430.0,1.27285216]
[1749448229598,0.64257888,105440.0,105430.0,1.17285216]
[1749448233007,0.64257888,105440.0,105430.0,1.3208652]
[1749448233698,0.83216918,105440.0,105430.0,1.3208652]
[1749448234408,0.64257888,105440.0,105430.0,1.3208652]
[1749448234707,0.83216918,105440.0,105430.0,1.3208652]
[1749448235604,0.83216918,105440.0,105430.0,1.1137769]
[1749448237304,0.83216918,105440.0,105430.0,1.0817769]
[1749448237502,0.83216918,105440.0,105430.0,1.05217442]
[1749448242504,0.83216918,105440.0,105430.0,0.93376386]
[1749448243010,0.83216918,105440.0,105430.0,1.14085216]
[1749448261323,2.09860918,105440.0,105430.0,1.14085216]
[1749448261624,3.36864918,105440.0,105430.0,1.14085216]
[1749448263917,3.36864918,105440.0,105430.0,1.0229867]
[1749448264120,3.36864918,105440.0,105430.0,1.14085216]
[1749448264525,3.36864918,105440.0,105430.0,1.24085216]
[1749448265628,3.36864918,105440.0,105430.0,1.14085216]
[1749448268128,3.17905888,105440.0,105430.0,1.08178644]
[1749448268422,3.36864918,105440.0,105430.0,1.08178644]
[1749448269329,3.36864918,105440.0,105430.0,1.05078644]
[1749448275831,3.36864918,105440.0,105430.0,1.10985216]
[1749448288238,3.36864918,105440.0,105430.0,1.00985216]
[1749448288437,3.84731464,105440.0,105430.0,0.97825216]
[1749448288736,3.84731464,105440.0,105430.0,0.81918561]
[1749448288938,3.84731464,105440.0,105430.0,0.81878561]
[1749448289141,3.84731464,105440.0,105430.0,0.81918561]
[1749448290043,3.84731464,105440.0,105430.0,0.78916756]
[1749448290341,3.84731464,105440.0,105430.0,0.78956756]
[1749448290731,3.84731464,105440.0,105430.0,0.49266756]
[1749448290940,3.84731464,105440.0,105430.0,0.49226756]
[1749448291141,3.84731464,105440.0,105430.0,0.3748021]
[1749448292643,3.84731464,105440.0,105430.0,0.49266756]
[1749448294435,3.48651464,105440.0,105430.0,0.49266756]
[1749448294640,4.20811464,105440.0,105430.0,0.49266756]
[1749448295042,4.20405804,105440.0,105430.0,0.49266756]
[1749448295843,4.20405804,105440.0,105430.0,0.50697106]
[1749448296042,4.20811464,105440.0,105430.0,0.50697106]
[1749448296542,4.20811464,105440.0,105430.0,0.5069822]
[1749448297745,3.48651464,105440.0,105430.0,0.5069822]
[1749448298046,4.20811464,105440.0,105430.0,0.5069822]
[1749448298443,4.20811464,105440.0,105430.0,0.49266756]
[1749448298640,4.20811464,105440.0,105430.0,0.50698147]
[1749448298839,4.20811464,105440.0,105430.0,0.49266756]
[1749448299052,4.20811464,105440.0,105430.0,0.50698147]
[1749448299243,4.20811464,105440.0,105430.0,0.59567751]
[1749448299557,4.20811464,105440.0,105430.0,0.59567745]
[1749448299843,4.20811464,105440.0,105430.0,0.5813636]
[1749448300043,4.20811464,105440.0,105430.0,0.59572703]
[1749448300249,4.20811464,105440.0,105430.0,0.59572657]
[1749448301248,4.20811464,105440.0,105430.0,0.5957259]
[1749448302150,4.20811464,105440.0,105430.0,0.59572909]
[1749448303149,4.20811464,105440.0,105430.0,0.59572875]
[1749448303651,4.20811464,105440.0,105430.0,0.5813636]
[1749448303951,4.20811464,105440.0,105430.0,0.59572889]
[1749448304153,4.20811464,105440.0,105430.0,0.59572898]
[1749448304950,4.20811464,105440.0,105430.0,0.59574219]
[1749448305153,4.20811464,105440.0,105430.0,0.59574247]
[1749448305448,4.20811464,105440.0,105430.0,0.5813636]
[1749448305748,4.20811464,105440.0,105430.0,0.59574255]
[1749448305945,4.20811464,105440.0,105430.0,0.59574256]
[1749448306251,4.20811464,105440.0,105430.0,0.47787713]
[1749448306452,4.20811464,105440.0,105430.0,0.47733889]
[1749448306649,4.20811464,105440.0,105430.0,0.53647568]
[1749448307150,4.20811464,105440.0,105430.0,0.52209478]
[1749448307349,4.20811464,105440.0,105430.0,0.53647643]
[1749448307559,4.20811464,105440.0,105430.0,0.52209478]
[1749448307852,4.20811464,105440.0,105430.0,0.53647641]
[1749448308255,4.20811464,105440.0,105430.0,0.52209478]
[1749448308463,4.20811464,105440.0,105430.0,0.53647536]
[1749448308751,4.20811464,105440.0,105430.0,0.4186099]
[1749448309154,4.20811464,105440.0,105430.0,0.40422932]
[1749448309456,4.3259801,105440.0,105430.0,0.41860989]
[1749448309655,4.3259801,105440.0,105430.0,0.41860991]
[1749448309853,4.3259801,105440.0,105430.0,0.41858373]
[1749448310359,4.3259801,105440.0,105430.0,0.41858409]
[1749448310552,4.3259801,105440.0,105430.0,0.40422932]
[1749448310758,4.3259801,105440.0,105430.0,0.41858409]
[1749448311259,4.3259801,105440.0,105430.0,0.40422932]
[1749448311454,4.3259801,105440.0,105430.0,0.41858376]
[1749448311651,4.20811464,105440.0,105430.0,0.41858376]
[1749448312260,4.20811464,105440.0,105430.0,0.41879866]
[1749448312462,4.20811464,105440.0,105430.0,0.35966378]
[1749448312846,4.3259801,105440.0,105430.0,0.35966378]
[1749448313054,4.3259801,105440.0,105430.0,0.21462857]
[1749448313361,4.3259801,105440.0,105430.0,0.41880708]
[1749448313557,4.3259801,105440.0,105430.0,0.41840708]
[1749448313758,4.3259801,105440.0,105430.0,0.41880708]
[1749448314258,4.3259801,105440.0,105430.0,0.40423687]
[1749448314456,4.3259801,105440.0,105430.0,0.4188095]
[1749448315760,4.3259801,105440.0,105430.0,0.40423687]
[1749448315963,4.3259801,105440.0,105430.0,0.41884392]
[1749448316258,4.3259801,105440.0,105430.0,0.40423687]
[1749448316855,4.3259801,105440.0,105430.0,0.22923799]
[1749448317256,4.3259801,105440.0,105430.0,0.17009546]
[1749448317456,4.3259801,105440.0,105430.0,0.35971717]
[1749448317663,4.3259801,105440.0,105430.0,0.35971727]
[1749448317958,4.3259801,105440.0,105430.0,0.35971724]
[1749448318358,4.3259801,105440.0,105430.0,0.17010894]
[1749448318665,4.3259801,105440.0,105430.0,0.22931771]
[1749448319049,4.38503848,105440.0,105430.0,0.22891771]
[1749448319249,4.3259801,105440.0,105430.0,0.21469481]
[1749448319459,4.3259801,105440.0,105430.0,0.22932286]
[1749448319659,4.4208281,105440.0,105430.0,0.12599877]
[1749448320264,4.4208281,105440.0,105430.0,0.14060799]
[1749448320765,0.1896084,105430.0,105420.0,0.39686832]
[1749448320957,0.76527386,105430.0,105420.0,0.39686832]
[1749448321158,0.76527386,105430.0,105420.0,0.39726832]
[1749448322368,0.77127386,105430.0,105420.0,0.39726832]
[1749448322864,0.77127386,105430.0,105420.0,0.27886462]
[1749448324070,0.41047386,105430.0,105420.0,0.27886462]
[1749448324364,1.13207386,105430.0,105420.0,0.27886462]
[1749448324765,0.41047386,105430.0,105420.0,0.27886462]
[1749448325063,1.13207386,105430.0,105420.0,0.27886462]
[1749448325666,1.13613046,105430.0,105420.0,0.27886462]
[1749448327062,0.41453046,105430.0,105420.0,0.27886462]
[1749448327265,1.13613046,105430.0,105420.0,0.27886462]
[1749448328155,1.68415592,105430.0,105420.0,0.08923832]
[1749448328355,2.10045046,105430.0,105420.0,0.00054228]
[1749448328561,2.15950884,105430.0,105420.0,0.00014228]
[1749448328764,2.15950884,105430.0,105420.0,0.00054228]
[1749448329162,2.04164338,105430.0,105420.0,0.00054228]
[1749448329362,2.10045046,105430.0,105420.0,0.00054228]
[1749448332865,2.10045046,105430.0,105420.0,0.015094]
[1749448333065,1.37885046,105430.0,105420.0,0.015094]
[1749448333268,2.10045046,105430.0,105420.0,0.01510118]
[1749448333670,1.37885046,105430.0,105420.0,0.01510118]
[1749448333873,2.10045046,105430.0,105420.0,0.01510118]
[1749448334069,2.10045046,105430.0,105420.0,0.00054228]
[1749448334373,2.10045046,105430.0,105420.0,0.01510118]
[1749448334670,2.10045046,105430.0,105420.0,0.01497512]
[1749448335073,2.10045046,105430.0,105420.0,0.01496945]
[1749448335272,2.10045046,105430.0,105420.0,0.01502708]
[1749448335666,3.36689046,105430.0,105420.0,0.01502708]
[1749448335867,3.36689046,105430.0,105420.0,0.00054228]
[1749448336170,3.36689046,105430.0,105420.0,0.01502708]
[1749448336368,4.63693046,105430.0,105420.0,0.01502708]
[1749448336771,4.63693046,105430.0,105420.0,0.0150372]
[1749448337171,4.63693046,105430.0,105420.0,0.01503721]
[1749448337575,4.63693046,105430.0,105420.0,0.00054228]
[1749448338073,4.63693046,105430.0,105420.0,0.01503721]
[1749448338665,4.63693046,105430.0,105420.0,0.00054228]
[1749448339476,4.63693046,105430.0,105420.0,0.01503699]
[1749448339970,4.63693046,105430.0,105420.0,0.00054228]
[1749448340172,4.63693046,105430.0,105420.0,0.01503699]
[1749448340362,4.63693046,105430.0,105420.0,0.00054228]
[1749448340567,4.63693046,105430.0,105420.0,0.0150514]
[1749448340766,4.63693046,105430.0,105420.0,0.01505141]
[1749448340967,4.63693046,105430.0,105420.0,0.00054228]
[1749448341170,4.63693046,105430.0,105420.0,0.01505141]
[1749448342076,4.63693046,105430.0,105420.0,0.0150555]
[1749448342276,4.63693046,105430.0,105420.0,0.00054228]
[1749448342575,4.63693046,105430.0,105420.0,0.0150555]
[1749448344083,4.63693046,105430.0,105420.0,0.01505814]
[1749448344470,4.63693046,105430.0,105420.0,0.00054228]
[1749448344977,4.63693046,105430.0,105420.0,0.01505814]
[1749448345578,4.63693046,105430.0,105420.0,0.01508049]
[1749448346382,4.63693046,105430.0,105420.0,0.00054228]
[1749448346579,4.63693046,105430.0,105420.0,0.01508049]
[1749448347381,4.63693046,105430.0,105420.0,0.00054228]
[1749448347781,4.63693046,105430.0,105420.0,0.01509047]
[1749448347982,4.63693046,105430.0,105420.0,0.00054228]
[1749448348884,4.63693046,105430.0,105420.0,0.01509047]
[1749448349383,4.69598884,105430.0,105420.0,0.01509047]
[1749448349683,4.69598884,105430.0,105420.0,0.01509134]
[1749448350376,4.69598884,105430.0,105420.0,0.01509348]
[1749448351276,4.69598884,105430.0,105420.0,0.01508387]
[1749448351477,4.69598884,105430.0,105420.0,0.01508386]
[1749448351680,4.69598884,105430.0,105420.0,0.07427345]
[1749448352875,4.69598884,105430.0,105420.0,0.07427778]
[1749448353076,4.69598884,105430.0,105420.0,0.05973187]
[1749448353276,4.69598884,105430.0,105420.0,0.07427778]
[1749448353580,0.1896443,105410.0,105400.0,0.39676114]
[1749448353780,1.56322976,105410.0,105400.0,0.42846114]
[1749448353986,1.56322976,105410.0,105400.0,0.50520739]
[1749448354682,1.56322976,105410.0,105400.0,0.62347294]
[1749448354886,1.56322976,105410.0,105400.0,0.6089266]
[1749448355185,1.59914971,105410.0,105400.0,0.6089266]
[1749448355484,1.59914971,105410.0,105400.0,0.6234994]
[1749448355687,1.59914971,105410.0,105400.0,0.50565073]
[1749448355885,1.59914971,105410.0,105400.0,0.49106114]
[1749448356080,1.59914971,105410.0,105400.0,0.50565076]
[1749448356385,1.59914971,105410.0,105400.0,0.50564469]
[1749448356587,1.59914971,105410.0,105400.0,0.50524467]
[1749448356779,1.6748664,105410.0,105400.0,0.49106114]
[1749448356980,1.6778664,105410.0,105400.0,0.50564469]
[1749448357179,1.6808664,105410.0,105400.0,0.49106114]
[1749448358284,1.6808664,105410.0,105400.0,0.4023651]
[1749448358977,0.9903664,105410.0,105400.0,0.4023651]
[1749448359182,1.7119664,105410.0,105400.0,0.4023651]
[1749448360488,1.7419664,105410.0,105400.0,0.4023651]
[1749448361387,1.7419664,105410.0,105400.0,0.49120691]
[1749448362586,1.7419664,105410.0,105400.0,0.60907237]
[1749448363393,1.7419664,105410.0,105400.0,0.49066867]
[1749448364286,1.70604645,105410.0,105400.0,0.49066867]
[1749448364996,1.70596645,105410.0,105400.0,0.52023056]
[1749448367196,1.58810099,105410.0,105400.0,0.52023056]
[1749448367399,1.70596645,105410.0,105400.0,0.52023056]
[1749448370500,1.71002305,105410.0,105400.0,0.52023056]
[1749448378800,0.98842305,105410.0,105400.0,0.52023056]
[1749448378997,1.71002305,105410.0,105400.0,0.52023056]
[1749448379701,0.9213009,105410.0,105400.0,0.52023056]
[1749448379903,1.0944609,105410.0,105400.0,0.51969232]
[1749448380706,0.5605009,105410.0,105400.0,0.51969232]
[1749448381006,1.0944609,105410.0,105400.0,0.51969232]
[1749448381901,0.5605009,105410.0,105400.0,0.51969232]
[1749448382106,1.0944609,105410.0,105400.0,0.51969232]
[1749448382401,1.0944609,105410.0,105400.0,0.81659232]
[1749448383307,1.13043061,105410.0,105400.0,0.81659232]
[1749448384700,0.76963061,105410.0,105400.0,0.81659232]
[1749448384998,1.13043061,105410.0,105400.0,0.81659232]
[1749448385208,1.0944609,105410.0,105400.0,0.93499602]
[1749448385706,1.0944609,105410.0,105400.0,1.08301777]
[1749448387404,1.0944609,105410.0,105400.0,0.93499602]
[1749448390905,1.0944609,105410.0,105400.0,0.94927673]
[1749448391105,1.0944609,105410.0,105400.0,0.93499602]
[1749448391811,1.0944609,105410.0,105400.0,1.09729848]
[1749448392412,1.0944609,105410.0,105400.0,1.08301777]
[1749448393002,1.0944609,105410.0,105400.0,1.09729655]
[1749448393201,1.0944609,105410.0,105400.0,1.08301777]
[1749448393609,1.0944609,105410.0,105400.0,1.09729655]
[1749448394313,0.7336609,105410.0,105400.0,0.9492748]
[1749448394513,0.7336609,105410.0,105400.0,0.9492746]
[1749448394715,0.5440166,105410.0,105400.0,0.93499602]
[1749448394913,0.5440166,105410.0,105400.0,0.94927425]
[1749448395113,0.5440166,105410.0,105400.0,0.94923815]
[1749448395314,0.5440166,105410.0,105400.0,0.93499602]
[1749448395719,1.8104566,105410.0,105400.0,0.93499602]
[1749448396110,1.3770966,105410.0,105400.0,0.93499602]
[1749448396311,1.8103766,105410.0,105400.0,1.03499602]
[1749448396618,3.0804166,105410.0,105400.0,1.03499602]
[1749448397717,3.07636,105410.0,105400.0,1.03499602]
[1749448398618,3.07636,105410.0,105400.0,1.39579602]
[1749448398818,3.0804166,105410.0,105400.0,1.39579602]
[1749448401821,3.07636,105410.0,105400.0,1.39579602]
[1749448402216,2.54248,105410.0,105400.0,1.63815168]
[1749448402417,3.07624,105410.0,105400.0,1.73815168]
[1749448402622,3.07624,105410.0,105400.0,1.62028622]
[1749448407225,2.97568,105410.0,105400.0,1.73815168]
[1749448407727,2.97568,105410.0,105400.0,1.65823622]
[1749448408129,2.97568,105410.0,105400.0,1.68671622]
[1749448408630,2.97568,105410.0,105400.0,1.70101731]
[1749448408829,2.97568,105410.0,105400.0,1.68671622]
[1749448409028,2.97568,105410.0,105400.0,1.7010173]
[1749448409227,2.97568,105410.0,105400.0,1.76008385]
[1749448410033,2.97568,105410.0,105400.0,1.76008386]
[1749448410228,2.97568,105410.0,105400.0,1.76004781]
[1749448410423,2.97568,105410.0,105400.0,1.89372871]
[1749448410624,2.97568,105410.0,105400.0,1.90799375]
[1749448411535,2.97568,105410.0,105400.0,1.89372871]
[1749448411939,2.97568,105410.0,105400.0,1.90799097]
[1749448412138,2.97568,105410.0,105400.0,1.89372871]
[1749448412537,2.97568,105410.0,105400.0,1.90799097]
[1749448413344,2.97568,105410.0,105400.0,1.90799136]
[1749448413533,2.97568,105410.0,105400.0,1.90799137]
[1749448414442,2.97568,105410.0,105400.0,1.76004543]
[1749448414842,2.97568,105410.0,105400.0,1.39924543]
[1749448415042,2.97568,105410.0,105400.0,1.76004543]
[1749448415540,2.97568,105410.0,105400.0,1.76007427]
[1749448415738,2.97568,105410.0,105400.0,1.74578277]
[1749448415941,2.97568,105410.0,105400.0,1.76007427]
[1749448416637,2.97568,105410.0,105400.0,1.7600773]
[1749448417440,2.97568,105410.0,105400.0,1.74578277]
[1749448417641,2.97568,105410.0,105400.0,1.7600773]
[1749448418441,2.97568,105410.0,105400.0,1.76008023]
[1749448418628,2.97568,105410.0,105400.0,1.74578277]
[1749448418834,2.97568,105410.0,105400.0,1.76008425]
[1749448419937,2.97568,105410.0,105400.0,1.76008475]
[1749448420645,2.97568,105410.0,105400.0,1.76008836]
[1749448422348,3.00628,105410.0,105400.0,1.74578277]
[1749448422547,3.00628,105410.0,105400.0,1.76009869]
[1749448422548,3.03628,105410.0,105400.0,1.76009869]
[1749448422848,3.03628,105410.0,105400.0,1.74578277]
[1749448423043,3.03628,105410.0,105400.0,1.76009869]
[1749448423845,3.03628,105410.0,105400.0,1.74578277]
[1749448424248,3.03628,105410.0,105400.0,1.76009899]
[1749448425155,3.0403366,105410.0,105400.0,1.76009899]
[1749448425549,3.0403366,105410.0,105400.0,1.76010161]
[1749448425748,3.0403366,105410.0,105400.0,1.760103]
[1749448426754,3.0403366,105410.0,105400.0,1.74578277]
[1749448426956,3.0403366,105410.0,105400.0,1.76010299]
[1749448427355,3.0403366,105410.0,105400.0,1.74578277]
[1749448427552,3.0403366,105410.0,105400.0,1.76009156]
[1749448428159,3.0705366,105410.0,105400.0,1.76009156]
[1749448428358,3.0705366,105410.0,105400.0,1.72979156]
[1749448428950,3.0705366,105410.0,105400.0,1.71548277]
[1749448429152,3.0705366,105410.0,105400.0,1.72979313]
[1749448429353,3.0705366,105410.0,105400.0,1.71548277]
[1749448429664,3.0705366,105410.0,105400.0,1.72979313]
[1749448431061,3.0705366,105410.0,105400.0,1.72975588]
[1749448431561,3.0705366,105410.0,105400.0,1.71548277]
[1749448431759,3.0705366,105410.0,105400.0,1.72975588]
[1749448432360,3.0705366,105410.0,105400.0,1.71548277]
[1749448432560,3.0705366,105410.0,105400.0,1.72975525]
[1749448433163,3.0705366,105410.0,105400.0,1.71548277]
[1749448433349,3.0705366,105410.0,105400.0,1.72975525]
[1749448434063,3.0705366,105410.0,105400.0,1.72975958]
[1749448434457,3.0705366,105410.0,105400.0,1.36896028]
[1749448434664,3.0705366,105410.0,105400.0,1.69786028]
[1749448435361,3.0705366,105410.0,105400.0,1.68358277]
[1749448435559,3.0705366,105410.0,105400.0,1.69786028]
[1749448436064,3.0705366,105410.0,105400.0,1.69784446]